bitfinex-derivatives/quotes_SOLF0:USTF0_20250428
["timestamp","ask_amount","ask_price","bid_price","bid_amount"]
[1745844986468,4.94148376,150.76,150.63,1.9576]
[1745844986766,6.6321,150.72,150.63,1.9576]
[1745844987069,6.6321,150.72,150.68,6.6331]
[1745844987270,6.6321,150.72,150.63,1.9576]
[1745844987667,6.6321,150.72,150.68,6.6333]
[1745844987872,0.3608,150.78,150.68,6.6333]
[1745844988074,4.94258196,150.77,150.68,6.6333]
[1745844988271,6.6323,150.71,150.68,6.6333]
[1745844988772,6.6323,150.71,150.69,6.6331]
[1745844988972,6.6323,150.71,150.63,1.9576]
[1745844989174,6.6323,150.71,150.68,6.6332]
[1745844989377,2.0023,150.81,150.64,13.2701]
[1745844989668,4.94483028,150.8,150.65,1.21825575]
[1745844989974,4.94483028,150.79,150.65,1.21825575]
[1745844990168,4.94483028,150.78,150.65,1.21825575]
[1745844990374,4.94483028,150.77,150.71,6.6318]
[1745844990572,2.0023,150.81,150.64,13.2701]
[1745844990573,6.6308,150.75,150.64,13.2701]
[1745844990773,2.0023,150.81,150.65,14.48774679]
[1745844990977,6.6304,150.76,150.66,1.21824679]
[1745844991176,6.6304,150.76,150.67,3.9766]
[1745844991473,2.0023,150.81,150.72,6.6315]
[1745844991674,6.6308,150.75,150.72,6.6315]
[1745844991874,2.0023,150.81,150.73,6.6313]
[1745844992070,4.94857973,150.8,150.73,6.6313]
[1745844992275,6.6303,150.76,150.73,6.6313]
[1745844993176,2.0023,150.81,150.68,13.2671]
[1745844993376,4.95071708,150.8,150.68,13.2671]
[1745844993679,4.95071708,150.79,150.69,2.0013]
[1745844993975,0.8743,150.82,150.69,2.0013]
[1745844994276,4.95044031,150.81,150.69,2.0013]
[1745844994478,6.6294,150.78,150.75,6.6302]
[1745844995181,6.6294,150.78,150.69,2.0013]
[1745844995376,2.0642,150.84,150.69,2.0013]
[1745844995678,4.95131485,150.83,150.76,6.6298]
[1745844995880,6.6288,150.79,150.76,6.6298]
[1745844996472,6.6285,150.8,150.77,6.6295]
[1745844996780,2.0642,150.84,150.77,6.6295]
[1745844996981,4.95157912,150.83,150.69,2.0013]
[1745844997281,6.6289,150.79,150.76,6.6298]
[1745844997979,6.6289,150.79,150.77,6.6294]
[1745844999381,6.6283,150.8,150.78,6.6291]
[1745844999578,6.6283,150.8,150.69,2.0013]
[1745844999979,6.6283,150.8,150.77,6.6296]
[1745845000582,6.6287,150.79,150.77,6.6296]
[1745845000881,6.6287,150.79,150.69,2.0013]
[1745845001177,6.6287,150.79,150.76,6.6298]
[1745845002082,6.6292,150.78,150.75,6.6302]
[1745845002294,2.0642,150.84,150.69,2.0013]
[1745845002478,4.94876707,150.83,150.69,2.0013]
[1745845002773,4.94876707,150.82,150.69,2.0013]
[1745845002978,0.8737,150.86,150.7,1.21790576]
[1745845003185,4.94951251,150.85,150.7,1.21790576]
[1745845003382,4.94951251,150.84,150.7,1.21790576]
[1745845003681,6.6272,150.83,150.8,6.6282]
[1745845004087,1.9538,150.88,150.72,13.2636]
[1745845004386,4.94670202,150.87,150.73,5.11798405]
[1745845004685,4.94670202,150.86,150.73,3.9003]
[1745845004877,4.94670202,150.85,150.74,1.9966]
[1745845005076,1.9538,150.88,150.74,1.9966]
[1745845005287,4.94496899,150.87,150.78,6.6288]
[1745845005585,4.94496899,150.86,150.78,6.6288]
[1745845005785,4.94496899,150.85,150.78,6.6288]
[1745845005986,6.6279,150.81,150.78,6.6288]
[1745845006686,6.6276,150.82,150.78,6.6288]
[1745845006992,15.2038,150.88,150.77,6.6294]
[1745845007288,6.6281,150.81,150.74,1.9966]
[1745845007583,13.2504,150.87,150.77,6.6293]
[1745845007887,4.94434985,150.86,150.77,6.6293]
[1745845008088,4.94434985,150.85,150.78,6.6291]
[1745845008291,477.28,150.97,150.74,1.9966]
[1745845008490,4.9466797,150.9,150.75,1.21740915]
[1745845008694,4.9466797,150.89,150.75,1.21740915]
[1745845008887,13.2436,150.95,150.76,13.2601]
[1745845008888,11.5717797,150.88,150.76,13.2601]
[1745845009082,13.2436,150.95,150.77,1.21740915]
[1745845009291,4.94599037,150.9,150.86,6.6254]
[1745845009494,13.2436,150.95,150.86,6.6254]
[1745845009686,4.94575005,150.94,150.87,6.6251]
[1745845009887,4.94575005,150.93,150.87,6.6251]
[1745845010090,4.94575005,150.92,150.87,6.6251]
[1745845010387,4.94575005,150.91,150.87,6.6251]
[1745845010583,6.6242,150.9,150.87,6.6251]
[1745845010788,13.2436,150.95,150.86,6.6255]
[1745845010988,4.9440127,150.94,150.86,6.6255]
[1745845011189,6.6243,150.89,150.86,6.6255]
[1745845011891,6.6243,150.89,150.87,6.6252]
[1745845012194,6.6243,150.89,150.8,1.9314]
[1745845012693,6.6243,150.89,150.86,6.6254]
[1745845013292,13.2436,150.95,150.8,1.9314]
[1745845013594,4.94001154,150.94,150.81,1.21697665]
[1745845013793,6.6235,150.91,150.87,6.6249]
[1745845013991,478.1495,150.97,150.8,1.9314]
[1745845014192,4.9406347,150.96,150.81,1.21697816]
[1745845014387,478.1495,150.97,150.81,1.21697816]
[1745845014388,6.6232,150.92,150.88,6.6244]
[1745845016800,6.6236,150.91,150.88,6.6244]
[1745845017499,478.1495,150.97,150.8,1.9314]
[1745845017700,4.93137283,150.96,150.8,1.9314]
[1745845017896,4.93137283,150.95,150.8,1.9314]
[1745845018096,6.6246,150.89,150.8,1.9314]
[1745845018297,33.1126,150.96,150.8,1.9314]
[1745845018500,24.80013722,150.95,150.8,1.9314]
[1745845018698,6.6257,150.86,150.8,1.9314]
[1745845019500,19.87,150.95,150.8,1.9314]
[1745845019701,24.79962152,150.94,150.8,1.9314]
[1745845019900,6.6256,150.86,150.83,6.6267]
[1745845020294,2.0077,150.93,150.8,1.9314]
[1745845020496,6.6268,150.84,150.8,1.9314]
[1745845020697,19.87,150.92,150.8,1.9314]
[1745845021001,6.6265,150.85,150.82,6.6274]
[1745845021597,6.6266,150.84,150.82,6.6274]
[1745845022202,6.6262,150.85,150.82,6.6274]
[1745845022696,2.3626,150.93,150.81,6.6277]
[1745845022902,6.6266,150.84,150.81,6.6277]
[1745845027904,2.3626,150.93,150.8,1.9314]
[1745845028202,20.7385,150.91,150.73,13.2626]
[1745845028500,6.6276,150.82,150.79,6.6284]
[1745845029105,6.6279,150.81,150.78,6.629]
[1745845029299,0.8685,150.91,150.74,5.8998]
[1745845029300,19.87,150.89,150.74,5.8998]
[1745845029504,24.80591389,150.88,150.74,5.8998]
[1745845029803,7.32469048,150.87,150.74,5.8998]
[1745845029998,4.93749048,150.86,150.74,5.8998]
[1745845030199,4.93749048,150.85,150.74,5.8998]
[1745845030404,4.93749048,150.84,150.74,5.8998]
[1745845030596,6.6281,150.81,150.78,6.629]
[1745845036013,6.6284,150.8,150.77,6.6294]
[1745845036208,2.3872,150.87,150.74,5.8998]
[1745845036402,6.6281,150.81,150.78,6.6291]
[1745845038308,6.6284,150.8,150.77,6.6294]
[1745845038610,2.3872,150.87,150.74,5.8998]
[1745845038804,4.95626033,150.86,150.76,6.6296]
[1745845039109,4.95626033,150.85,150.74,5.8998]
[1745845039311,4.95626033,150.84,150.74,5.8998]
[1745845039512,4.95626033,150.83,150.74,5.8998]
[1745845039811,4.95626033,150.82,150.74,5.8998]
[1745845040010,6.6289,150.79,150.76,6.6298]
[1745845040709,13.2527,150.85,150.76,6.6298]
[1745845040905,4.95736265,150.84,150.75,6.6303]
[1745845041103,4.95736265,150.83,150.74,5.8998]
[1745845041302,6.629,150.79,150.76,6.6297]
[1745845042711,6.629,150.79,150.77,6.6295]
[1745845043613,6.629,150.79,150.76,6.6299]
[1745845044214,6.629,150.79,150.77,6.6295]
[1745845044519,6.629,150.79,150.74,5.8998]
[1745845044814,6.629,150.79,150.76,6.6297]
[1745845045515,2.3872,150.87,150.74,5.8998]
[1745845045714,4.95894367,150.86,150.74,5.8998]
[1745845046014,6.6279,150.81,150.78,6.6288]
[1745845046406,2.3872,150.87,150.78,6.6288]
[1745845046605,4.96010266,150.86,150.78,6.6288]
[1745845046805,4.96010266,150.85,150.78,6.6288]
[1745845047016,6.6284,150.8,150.77,6.6294]
[1745845047316,2.3872,150.87,150.74,5.8998]
[1745845047517,6.6285,150.8,150.74,5.8998]
[1745845047716,2.3872,150.87,150.74,5.8998]
[1745845047916,18.21228397,150.86,150.74,5.8998]
[1745845048112,6.6291,150.79,150.76,6.6298]
[1745845048319,6.6291,150.79,150.74,5.8998]
[1745845048718,6.6292,150.78,150.76,6.6298]
[1745845049218,6.6289,150.79,150.77,6.6294]
[1745845050420,6.6285,150.8,150.74,3.9184]
[1745845050620,13.2516,150.86,150.74,3.9184]
[1745845050916,4.95819712,150.85,150.74,3.9184]
[1745845051117,4.95819712,150.84,150.74,3.9184]
[1745845051310,4.95819712,150.83,150.74,3.9184]
[1745845051512,6.6288,150.79,150.76,6.6298]
[1745845051713,6.6288,150.79,150.74,3.9184]
[1745845051918,6.6288,150.79,150.76,6.6297]
[1745845052721,13.2516,150.86,150.74,3.9184]
[1745845053021,4.95776809,150.85,150.74,3.9184]
[1745845053211,6.6276,150.82,150.79,6.6285]
[1745845053616,2.0318,150.87,150.74,3.9184]
[1745845053818,6.6271,150.83,150.74,3.9184]
[1745845054116,13.2484,150.9,150.74,3.9184]
[1745845054314,4.95925633,150.89,150.74,3.9184]
[1745845054516,4.95925633,150.88,150.78,6.6288]
[1745845054721,4.95925633,150.87,150.78,6.6288]
[1745845055018,6.6278,150.82,150.79,6.6286]
[1745845058222,6.6278,150.81,150.79,6.6286]
[1745845058424,6.6278,150.81,150.74,3.9184]
[1745845059325,6.6276,150.82,150.74,3.9184]
[1745845059525,6.6276,150.82,150.79,6.6286]
[1745845060226,6.6276,150.82,150.8,6.6282]
[1745845060529,6.6276,150.82,150.74,3.9184]
[1745845060724,6.6279,150.81,150.74,3.9184]
[1745845060925,6.6279,150.81,150.78,6.6288]
[1745845061129,13.2487,150.89,150.74,3.9184]
[1745845061321,6.6276,150.82,150.74,3.9184]
[1745845061624,6.6276,150.82,150.79,6.6286]
[1745845062225,6.6279,150.81,150.78,6.6289]
[1745845062424,6.6279,150.81,150.74,3.9184]
[1745845062825,6.6276,150.82,150.79,6.6287]
[1745845063028,4.97464473,150.81,150.79,6.6287]
[1745845063226,6.6276,150.82,150.74,3.9184]
[1745845063522,4.97702221,150.81,150.8,6.6282]
[1745845063722,13.2487,150.89,150.74,3.9184]
[1745845063924,6.6267,150.84,150.81,6.6276]
[1745845064330,478.0685,150.91,150.74,3.9184]
[1745845064527,6.626,150.86,150.82,6.6272]
[1745845065219,6.6261,150.85,150.82,6.6272]
[1745845066432,478.0685,150.91,150.74,3.9184]
[1745845066627,478.0685,150.91,150.75,1.21745896]
[1745845066824,0.8685,150.91,150.75,1.21745896]
[1745845067029,6.6263,150.85,150.75,1.21745896]
[1745845067227,6.6263,150.85,150.74,3.9184]
[1745845067427,6.6263,150.85,150.75,1.21745957]
[1745845067627,6.6263,150.85,150.82,6.6274]
[1745845068725,0.8685,150.91,150.74,3.9184]
[1745845068931,0.8685,150.91,150.75,1.21745237]
[1745845069238,6.6263,150.85,150.82,6.627]
[1745845069728,6.6268,150.84,150.81,6.6274]
[1745845070031,6.6268,150.84,150.75,13.2606]
[1745845070235,6.6268,150.84,150.81,6.6275]
[1745845070429,6.6268,150.84,150.75,13.2606]
[1745845070934,6.6268,150.84,150.81,6.6275]
[1745845071136,6.6272,150.83,150.75,13.2606]
[1745845071338,13.2479,150.9,150.75,13.2606]
[1745845071532,13.2479,150.9,150.8,6.6279]
[1745845071733,6.6272,150.83,150.8,6.6279]
[1745845072037,13.2479,150.9,150.81,6.6275]
[1745845072537,6.6267,150.84,150.81,6.6275]
[1745845073137,6.6267,150.84,150.82,6.6272]
[1745845073735,6.6267,150.84,150.81,6.6276]
[1745845074938,13.2479,150.9,150.81,6.6276]
[1745845075337,6.6268,150.84,150.81,6.6276]
[1745845075838,6.6268,150.84,150.82,6.6271]
[1745845076438,6.6268,150.84,150.81,6.6276]
[1745845076737,6.6268,150.84,150.75,13.2606]
[1745845077038,6.6268,150.84,150.81,6.6275]
[1745845080143,6.627,150.83,150.81,6.6275]
[1745845082437,6.627,150.83,150.75,13.2606]
[1745845082644,0.8685,150.91,150.74,3.9184]
[1745845082839,4.45532963,150.9,150.74,3.9184]
[1745845083040,6.6278,150.82,150.79,6.6286]
[1745845085140,6.6278,150.82,150.8,6.6282]
[1745845085341,13.2498,150.88,150.74,3.9184]
[1745845085541,4.45627225,150.87,150.74,3.9184]
[1745845085738,6.6277,150.82,150.79,6.6285]
[1745845086248,13.2498,150.88,150.79,6.6285]
[1745845086448,4.45707946,150.87,150.79,6.6285]
[1745845086647,4.45707946,150.86,150.79,6.6285]
[1745845086942,4.45707946,150.85,150.74,3.9184]
[1745845087140,4.45707946,150.84,150.74,3.9184]
[1745845087340,4.45707946,150.83,150.74,3.9184]
[1745845087544,6.6282,150.81,150.78,6.629]
[1745845087748,3.9662,150.87,150.78,6.629]
[1745845087947,4.45768721,150.86,150.78,6.629]
[1745845088146,6.6282,150.81,150.78,6.629]
[1745845088344,3.9662,150.87,150.74,3.9184]
[1745845088545,25.20119063,150.86,150.74,2.0218]
[1745845088745,24.327514,150.85,150.74,2.0218]
[1745845088947,17.710714,150.84,150.74,8.6525]
[1745845089146,6.6302,150.76,150.74,8.6525]
[1745845089351,6.6302,150.76,150.73,6.6312]
[1745845089648,6.6302,150.76,150.72,1.9494]
[1745845089846,6.6298,150.77,150.74,6.6306]
[1745845090051,2.0832,150.82,150.72,1.9494]
[1745845090254,4.45429391,150.81,150.72,1.9494]
[1745845090450,6.6292,150.78,150.76,6.6298]
[1745845090850,2.0832,150.82,150.72,1.9494]
[1745845091056,6.6285,150.8,150.77,6.6293]
[1745845091251,4.45518598,150.79,150.77,6.6293]
[1745845091454,6.6285,150.8,150.77,6.6293]
[1745845091650,4.45457596,150.79,150.77,6.6293]
[1745845091851,6.6287,150.79,150.77,6.6293]
[1745845092153,6.6287,150.79,150.76,6.6298]
[1745845093558,2.0832,150.82,150.72,1.9494]
[1745845093757,4.45234375,150.81,150.72,1.9494]
[1745845093962,4.45234375,150.8,150.72,1.9494]
[1745845094153,4.45234375,150.79,150.72,1.9494]
[1745845094453,2.0832,150.82,150.75,6.6304]
[1745845094678,4.45150933,150.81,150.75,6.6304]
[1745845094849,4.45150933,150.8,150.75,6.6304]
[1745845095053,6.6298,150.77,150.75,6.6304]
[1745845095760,2.0832,150.82,150.72,1.9494]
[1745845096057,4.45040788,150.81,150.72,1.9494]
[1745845096258,4.45040788,150.8,150.72,1.9494]
[1745845096462,4.44891357,150.79,150.69,3.8479]
[1745845096651,4.44891357,150.78,150.69,3.8479]
[1745845096853,4.44891357,150.77,150.69,3.8479]
[1745845097052,2.8819,150.81,150.69,3.8479]
[1745845097255,4.44709036,150.8,150.69,3.8479]
[1745845097457,4.44709036,150.79,150.69,3.8479]
[1745845097772,4.44709036,150.78,150.72,6.6318]
[1745845097955,4.44709036,150.77,150.69,3.8479]
[1745845098159,6.6309,150.74,150.71,6.632]
[1745845100961,6.6309,150.74,150.72,6.6317]
[1745845101655,6.6309,150.74,150.71,6.632]
[1745845101864,2.8819,150.81,150.67,3.9181]
[1745845102159,4.43770371,150.8,150.67,3.9181]
[1745845102360,4.43770371,150.79,150.67,3.9181]
[1745845102560,6.6303,150.76,150.67,3.9181]
[1745845103171,6.6303,150.76,150.73,6.6311]
[1745845103462,2.8819,150.81,150.67,3.9181]
[1745845103665,4.43588061,150.8,150.67,3.9181]
[1745845103963,4.43588061,150.79,150.72,6.6314]
[1745845104261,6.6308,150.75,150.72,6.6314]
[1745845104863,2.8819,150.81,150.72,6.6314]
[1745845105063,4.4348974,150.8,150.72,6.6314]
[1745845105362,6.6307,150.75,150.73,6.6313]
[1745845105760,2.8819,150.81,150.73,6.6313]
[1745845106063,4.43410319,150.8,150.67,3.9181]
[1745845106259,4.43410319,150.79,150.67,3.9181]
[1745845106561,6.6307,150.75,150.73,6.6311]
[1745845109566,2.0083,150.81,150.68,13.267]
[1745845109765,4.43232851,150.8,150.68,13.267]
[1745845110068,6.6298,150.77,150.74,6.6306]
[1745845110868,2.0083,150.81,150.73,6.6311]
[1745845111165,4.43276079,150.8,150.73,6.6311]
[1745845111371,4.43276079,150.79,150.69,1.967]
[1745845111567,2.0083,150.81,150.69,1.967]
[1745845111768,4.43271132,150.8,150.69,1.967]
[1745845112067,4.43271132,150.79,150.69,1.967]
[1745845112263,4.43271132,150.78,150.69,1.967]
[1745845112560,6.6313,150.74,150.71,6.632]
[1745845112765,0.8734,150.8,150.71,6.632]
[1745845112961,4.43232784,150.79,150.71,6.632]
[1745845113157,4.43232784,150.78,150.7,6.6324]
[1745845113364,14.1302,150.8,150.69,1.967]
[1745845113563,4.43233073,150.79,150.69,1.967]
[1745845113769,4.43233073,150.78,150.69,1.967]
[1745845113966,14.1302,150.8,150.69,1.967]
[1745845114167,4.43229121,150.79,150.69,1.967]
[1745845114369,6.6316,150.73,150.71,6.6322]
[1745845116464,6.6323,150.71,150.69,6.6329]
[1745845116770,13.258,150.79,150.67,3.9181]
[1745845117069,4.43198922,150.78,150.67,3.9181]
[1745845117368,6.6318,150.73,150.7,6.6325]
[1745845117563,13.258,150.79,150.7,6.6325]
[1745845117764,4.43218284,150.78,150.7,6.6325]
[1745845117968,4.43218284,150.77,150.7,6.6325]
[1745845118268,13.258,150.79,150.7,6.6325]
[1745845118470,4.43235236,150.78,150.7,6.6325]
[1745845118671,6.632,150.72,150.7,6.6325]
[1745845118873,6.632,150.72,150.69,6.6329]
[1745845119067,6.6332,150.69,150.65,1.9321]
[1745845119275,19.87,150.78,150.66,6.6343]
[1745845119474,6.37703403,150.77,150.66,6.6343]
[1745845119772,6.6338,150.68,150.66,6.6343]
[1745845120174,6.6338,150.68,150.65,8.5667]
[1745845120572,6.6332,150.69,150.65,1.9321]
[1745845120874,6.6332,150.69,150.66,6.6343]
[1745845122571,6.6344,150.67,150.64,6.635]
[1745845122777,13.2619,150.74,150.61,6.0321]
[1745845123076,4.42870096,150.73,150.61,6.0321]
[1745845123377,6.6344,150.66,150.61,6.0321]
[1745845123676,2.0496,150.72,150.61,6.0321]
[1745845123872,6.6348,150.66,150.63,6.6356]
[1745845124677,6.6348,150.66,150.64,6.6353]
[1745845124978,2.0496,150.72,150.61,6.0321]
[1745845125172,4.42717758,150.71,150.61,6.0321]
[1745845125467,6.6348,150.66,150.63,6.6356]
[1745845125873,2.0496,150.72,150.63,6.6356]
[1745845126078,4.42563111,150.71,150.63,6.6356]
[1745845126575,6.6351,150.65,150.62,6.636]
[1745845126970,6.6355,150.64,150.61,8.5855]
[1745845127373,6.6355,150.64,150.61,1.9491]
[1745845127773,6.6358,150.63,150.61,8.5856]
[1745845127977,1.9014,150.71,150.61,8.5856]
[1745845128177,4.42551365,150.7,150.61,8.5856]
[1745845128382,6.6356,150.64,150.61,8.5856]
[1745845128576,1.9014,150.71,150.61,8.5856]
[1745845128878,6.6355,150.64,150.61,8.5856]
[1745845129177,1.9014,150.71,150.61,8.5856]
[1745845129378,4.4245949,150.7,150.61,8.5856]
[1745845129677,4.4245949,150.7,150.61,1.9491]
[1745845129978,1.9014,150.71,150.61,1.9491]
[1745845130172,4.4246032,150.7,150.61,1.9491]
[1745845130477,4.4246032,150.7,150.62,6.6359]
[1745845130777,6.6352,150.65,150.61,1.9491]
[1745845130981,6.6352,150.65,150.62,6.6361]
[1745845131879,6.6346,150.66,150.61,1.9491]
[1745845132071,2.0496,150.72,150.61,1.9491]
[1745845132267,4.42511944,150.71,150.61,1.9491]
[1745845132476,6.6342,150.67,150.64,6.6349]
[1745845132979,6.6342,150.67,150.61,1.9491]
[1745845133677,6.6342,150.67,150.64,6.6351]
[1745845133976,6.6336,150.68,150.61,1.9491]
[1745845134178,2.0496,150.72,150.66,6.6341]
[1745845134381,2.0496,150.72,150.61,1.9491]
[1745845134877,2.0496,150.72,150.64,6.6352]
[1745845135177,2.0496,150.72,150.61,1.9491]
[1745845135370,2.0496,150.72,150.66,6.6342]
[1745845135567,2.0496,150.72,150.61,1.9491]
[1745845135880,6.6338,150.68,150.65,6.6346]
[1745845136177,2.0496,150.72,150.61,1.9491]
[1745845136178,6.6347,150.66,150.61,1.9491]
[1745845136568,6.6347,150.66,150.63,6.6354]
[1745845136774,6.6334,150.69,150.61,1.9491]
[1745845137176,6.6334,150.69,150.66,6.6342]
[1745845140885,6.6336,150.68,150.66,6.6342]
[1745845141284,13.2619,150.74,150.66,6.6342]
[1745845141587,6.6335,150.69,150.63,1.9093]
[1745845142580,6.6335,150.69,150.66,6.6342]
[1745845142906,6.6336,150.68,150.63,1.9093]
[1745845143178,6.634,150.67,150.65,6.6346]
[1745845143480,6.634,150.67,150.63,1.9093]
[1745845143682,6.634,150.67,150.64,6.6349]
[1745845143883,6.634,150.67,150.63,1.9093]
[1745845144082,6.6344,150.66,150.63,1.9093]
[1745845144283,13.2619,150.74,150.64,6.6351]
[1745845144585,6.42367317,150.73,150.64,6.6351]
[1745845144783,6.6344,150.67,150.64,6.6351]
[1745845145484,6.6345,150.66,150.64,6.6351]
[1745845145781,1.9934,150.73,150.64,6.6351]
[1745845145981,4.43045045,150.72,150.65,6.6348]
[1745845146480,4.43045045,150.71,150.63,8.5448]
[1745845146681,1.9022,150.72,150.63,1.9093]
[1745845146876,6.6346,150.66,150.63,1.9093]
[1745845147282,6.6346,150.66,150.64,6.6351]
[1745845147482,6.635,150.65,150.62,1.9082]
[1745845147782,1.9022,150.72,150.62,6.636]
[1745845147985,4.43135045,150.71,150.61,1.9491]
[1745845148282,6.6351,150.65,150.61,1.9491]
[1745845148481,2.7783,150.72,150.61,1.9491]
[1745845148675,6.6349,150.65,150.61,1.9491]
[1745845149084,6.6349,150.65,150.63,6.6355]
[1745845150886,6.6347,150.66,150.61,1.9491]
[1745845151686,2.7783,150.72,150.61,1.9491]
[1745845151887,2.7783,150.72,150.62,1.9345]
[1745845151888,4.43421938,150.71,150.62,1.9345]
[1745845152082,4.43421938,150.7,150.62,1.9345]
[1745845152284,2.7783,150.72,150.65,6.6346]
[1745845152592,4.43582794,150.71,150.62,1.9345]
[1745845152787,13.2619,150.74,150.62,1.9345]
[1745845153084,6.633,150.7,150.63,1.9247]
[1745845153286,6.633,150.7,150.67,6.6336]
[1745845153687,19.9,150.74,150.61,1.9491]
[1745845153988,4.43728215,150.73,150.61,3.8939]
[1745845154285,4.43728215,150.72,150.61,3.8939]
[1745845154488,6.6344,150.67,150.64,6.6351]
[1745845154687,15.3378,150.73,150.64,6.6351]
[1745845154886,4.43758021,150.72,150.61,3.8939]
[1745845155086,6.6348,150.66,150.63,6.6355]
[1745845155783,13.2642,150.72,150.62,6.636]
[1745845155993,4.43953711,150.71,150.61,3.8939]
[1745845156192,6.6351,150.65,150.63,6.6357]
[1745845158300,6.6351,150.65,150.61,1.9491]
[1745845159601,6.6351,150.65,150.63,6.6355]
[1745845161000,6.6345,150.66,150.64,6.6353]
[1745845167105,15.2677,150.72,150.59,1.9443]
[1745845167407,4.45571238,150.71,150.59,1.9443]
[1745845167600,4.45571238,150.7,150.59,1.9443]
[1745845167796,6.6351,150.65,150.59,1.9443]
[1745845168805,6.6351,150.65,150.62,6.6359]
[1745845170306,6.6351,150.65,150.63,6.6357]
[1745845173009,6.6353,150.64,150.62,6.636]
[1745845173210,22.7815,150.72,150.59,1.9443]
[1745845173416,24.35822821,150.71,150.59,1.9443]
[1745845173612,24.35822821,150.7,150.59,1.9443]
[1745845173818,17.72452821,150.69,150.56,485.82566098]
[1745845174011,4.45822821,150.68,150.56,485.82566098]
[1745845174212,4.45822821,150.67,150.56,485.82566098]
[1745845174514,4.45822821,150.66,150.56,485.82566098]
[1745845174713,6.6362,150.62,150.56,485.82566098]
[1745845175413,6.6362,150.62,150.59,6.6372]
[1745845176312,6.6362,150.62,150.6,6.637]
[1745845176914,6.6362,150.62,150.56,485.82566098]
[1745845177520,6.6362,150.62,150.59,6.6371]
[1745845177714,6.6362,150.62,150.56,485.82566098]
[1745845178115,6.6362,150.62,150.59,6.6372]
[1745845178510,6.6366,150.61,150.59,6.6372]
[1745845179019,6.6366,150.61,150.58,6.6377]
[1745845179218,2.7859,150.67,150.56,485.82566098]
[1745845179514,4.45314398,150.66,150.56,8.20566098]
[1745845179714,4.45314398,150.65,150.56,8.20566098]
[1745845179916,4.45314398,150.64,150.56,8.20566098]
[1745845180115,4.45314398,150.63,150.56,8.20566098]
[1745845180417,4.45314398,150.62,150.58,6.6378]
[1745845180717,2.7859,150.67,150.58,6.6378]
[1745845180908,4.45084444,150.66,150.58,6.6378]
[1745845181112,4.45084444,150.65,150.58,6.6378]
[1745845181308,4.45084444,150.64,150.57,6.6382]
[1745845181612,6.6373,150.6,150.57,6.6382]
[1745845182316,6.6373,150.6,150.58,6.6379]
[1745845182517,2.7859,150.67,150.56,8.20566098]
[1745845182717,4.44870821,150.66,150.56,8.20566098]
[1745845182914,4.44870821,150.65,150.61,6.6363]
[1745845183116,11.08440821,150.64,150.61,6.6363]
[1745845183316,1.9081,150.67,150.6,6.6369]
[1745845183517,4.44906609,150.66,150.6,6.6369]
[1745845183719,6.6361,150.63,150.6,6.6369]
[1745845184317,6.6364,150.62,150.6,6.6369]
[1745845184521,1.9081,150.67,150.61,6.6366]
[1745845184818,4.44931398,150.66,150.56,8.20566098]
[1745845185020,6.636,150.63,150.56,8.20566098]
[1745845185221,1.9081,150.67,150.6,6.6369]
[1745845185519,4.4493106,150.66,150.6,6.6369]
[1745845185818,4.4493106,150.65,150.6,6.6369]
[1745845186010,1.9081,150.67,150.6,6.6369]
[1745845186214,6.636,150.63,150.6,6.6369]
[1745845186820,6.6352,150.65,150.56,8.20566098]
[1745845187016,19.9,150.72,150.56,8.20566098]
[1745845187216,4.44958914,150.71,150.56,8.20566098]
[1745845187412,6.6349,150.65,150.62,6.6358]
[1745845187820,6.6349,150.65,150.63,6.6356]
[1745845188319,6.6349,150.65,150.62,6.636]
[1745845188821,6.6349,150.65,150.63,6.6357]